fUSD/lending_fUSD_20241221
["ID","MTS","AMOUNT","RATE_DAILY","PERIOD"]
[346206584,1734775861488,-500.0,0.00019452,2]
[346206585,1734775861497,-500.0,0.00019452,2]
[346206586,1734775861509,-500.0,0.00019452,2]
[346206587,1734775861519,-500.0,0.00019452,2]
[346206588,1734775861528,-1839.2,0.00019452,2]
[346206589,1734775861538,-500.0,0.00019452,2]
[346206590,1734775861548,-503.47320781,0.00019452,2]
[346206591,1734775861558,-500.0,0.00019452,2]
[346206592,1734775861568,-841.64,0.00019452,2]
[346206593,1734775861578,-500.0,0.00019452,2]
[346206594,1734775861587,-500.0,0.00019452,2]
[346206595,1734775861598,-500.0,0.00019452,2]
[346206596,1734775861607,-500.0,0.00019452,2]
[346206597,1734775861617,-753.67,0.00019452,2]
[346206598,1734775861628,-500.0,0.00019452,2]
[346206599,1734775861637,-500.0,0.00019452,2]
[346206600,1734775861647,-500.0,0.00019452,2]
[346206601,1734775861656,-1434.78,0.00019452,2]
[346206602,1734775861666,-500.0,0.00019452,2]
[346206603,1734775861675,-500.0,0.00019452,2]
[346206604,1734775861684,-500.0,0.00019452,2]
[346206605,1734775861693,-500.0,0.00019452,2]
[346206606,1734775861703,-500.0,0.00019452,2]
[346206607,1734775861711,-500.0,0.00019452,2]
[346206608,1734775861721,-500.0,0.00019452,2]
[346206609,1734775861730,-916.41,0.00019452,2]
[346206610,1734775861740,-500.0,0.00019452,2]
[346206611,1734775861751,-500.0,0.00019452,2]
[346206612,1734775861761,-500.0,0.00019452,2]
[346206613,1734775861770,-1229.82,0.00019452,2]
[346206614,1734775861780,-500.0,0.00019452,2]
[346206615,1734775861790,-538.68,0.00019452,2]
[346206616,1734775861801,-500.0,0.00019452,2]
[346206617,1734775861810,-500.0,0.00019452,2]
[346206618,1734775861819,-500.0,0.00019452,2]
[346206619,1734775861828,-500.0,0.00019452,2]
[346206620,1734775861837,-1289.82,0.00019452,2]
[346206621,1734775861847,-500.0,0.00019452,2]
[346206622,1734775861856,-500.0,0.00019452,2]
[346206623,1734775861865,-500.0,0.00019452,2]
[346206624,1734775861875,-500.0,0.00019452,2]
[346206625,1734775861885,-3068.56,0.00019452,2]
[346206626,1734775861895,-816.83,0.00019452,2]
[346206627,1734775861904,-500.0,0.00019452,2]
[346206628,1734775861914,-1681.21,0.00019452,2]
[346206629,1734775861923,-500.0,0.00019452,2]
[346206630,1734775861933,-821.19,0.00019452,2]
[346206631,1734775861942,-515.01,0.00019452,2]
[346206632,1734775861952,-500.0,0.00019452,2]
[346206633,1734775861961,-564.73,0.00019452,2]
[346206634,1734775861971,-500.0,0.00019452,2]
[346206635,1734775861981,-503.14,0.00019452,2]
[346206636,1734775861991,-500.0,0.00019452,2]
[346206637,1734775862003,-500.0,0.00019452,2]
[346206638,1734775862013,-500.0,0.00019452,2]
[346206639,1734775862023,-500.0,0.00019452,2]
[346206640,1734775862034,-500.0,0.00019452,2]
[346206641,1734775862046,-500.0,0.00019452,2]
[346206642,1734775862056,-500.0,0.00019452,2]
[346206643,1734775862065,-500.0,0.00019452,2]
[346206644,1734775862075,-528.97,0.00019452,2]
[346206645,1734775862085,-500.0,0.00019452,2]
[346206646,1734775862095,-500.0,0.00019452,2]
[346206647,1734775862104,-1802.69,0.00019452,2]
[346206648,1734775862115,-500.0,0.00019452,2]
[346206649,1734775862124,-500.0,0.00019452,2]
[346206650,1734775862134,-500.0,0.00019452,2]
[346206651,1734775862144,-1428.18,0.00019452,2]
[346206652,1734775862154,-500.0,0.00019452,2]
[346206653,1734775862164,-1530.46,0.00019452,2]
[346206654,1734775862173,-517.49,0.00019452,2]
[346206655,1734775862183,-500.0,0.00019452,2]
[346206656,1734775862193,-2857.77,0.00019452,2]
[346206657,1734775862202,-1035.1,0.00019452,2]
[346206658,1734775862212,-500.0,0.00019452,2]
[346206659,1734775862221,-5744.66,0.00019452,2]
[346206660,1734775862231,-506.08,0.00019452,2]
[346206661,1734775862241,-500.0,0.00019452,2]
[346206662,1734775862253,-500.0,0.00019452,2]
[346206663,1734775862264,-3645.89,0.00019452,2]
[346206664,1734775862273,-500.0,0.00019452,2]
[346206665,1734775862283,-7770.52,0.00019452,2]
[346206666,1734775862292,-500.0,0.00019452,2]
[346206667,1734775862302,-5825.61,0.00019452,2]
[346206668,1734775862311,-500.0,0.00019452,2]
[346206669,1734775862321,-500.0,0.00019452,2]
[346206670,1734775862331,-500.0,0.00019452,2]
[346206671,1734775862340,-500.0,0.00019452,2]
[346206672,1734775862350,-500.0,0.00019452,2]
[346206673,1734775862360,-500.0,0.00019452,2]
[346206674,1734775862370,-676.76,0.00019452,2]
[346206675,1734775862379,-655.72,0.00019452,2]
[346206676,1734775862388,-500.0,0.00019452,2]
[346206677,1734775862398,-500.0,0.00019452,2]
[346206678,1734775862407,-6344.44,0.00019452,2]
[346206679,1734775862416,-515.28,0.00019452,2]
[346206680,1734775862425,-500.0,0.00019452,2]
[346206681,1734775862435,-2388.26,0.00019452,2]
[346206682,1734775862444,-500.0,0.00019452,2]
[346206683,1734775862453,-1144.61,0.00019452,2]
[346206684,1734775862463,-500.0,0.00019452,2]
[346206685,1734775862472,-5318.41,0.00019452,2]
[346206686,1734775862482,-501.79,0.00019452,2]
[346206687,1734775862491,-500.0,0.00019452,2]
[346206688,1734775862502,-500.0,0.00019452,2]
[346206689,1734775862511,-1263.34,0.00019452,2]
[346206690,1734775862520,-500.0,0.00019452,2]
[346206691,1734775862530,-500.0,0.00019452,2]
[346206692,1734775862539,-500.0,0.00019452,2]
[346206693,1734775862548,-876.73,0.00019452,2]
[346206694,1734775862558,-500.0,0.00019452,2]
[346206695,1734775862577,-500.0,0.00019452,2]
[346206696,1734775862587,-935.87,0.00019452,2]
[346206697,1734775862597,-2971.78,0.00019452,2]
[346206698,1734775862607,-500.0,0.00019452,2]
[346206699,1734775862823,-6748.31,0.00019452,2]
[346206700,1734775862833,-1058.32,0.00019452,2]
[346206701,1734775862843,-326.82860911,0.00019452,2]
[346206702,1734775862852,-500.0,0.00019452,2]
[346206703,1734775862862,-1217.48,0.00019452,2]
[346206704,1734775862871,-3504.24,0.00019452,2]
[346206705,1734775862880,-385.43992365,0.00019452,2]
[346206706,1734775862890,-1129.8,0.00019452,2]
[346206707,1734775862900,-500.0,0.00019452,2]
[346206708,1734775862911,-500.0,0.00019452,2]
[346206709,1734775862920,-3097.42,0.00019452,2]
[346206710,1734775862930,-500.0,0.00019452,2]
[346206711,1734775862939,-500.0,0.00019452,2]
[346206712,1734775862948,-500.0,0.00019452,2]
[346206713,1734775862959,-1490.71,0.00019452,2]
[346206714,1734775862968,-500.0,0.00019452,2]
[346206715,1734775862977,-500.0,0.00019452,2]
[346206716,1734775862987,-676.92,0.00019452,2]
[346206717,1734775862996,-1565.87,0.00019452,2]
[346206718,1734775863007,-4052.02,0.00019452,2]
[346206719,1734775863017,-859.98,0.00019452,2]
[346206720,1734775863027,-500.0,0.00019452,2]
[346206721,1734775863041,-500.0,0.00019452,2]
[346206722,1734775863051,-1458.03,0.00019452,2]
[346206723,1734775863061,-511.98086457,0.00019452,2]
[346206724,1734775863070,-500.0,0.00019452,2]
[346206725,1734775863081,-500.0,0.00019452,2]
[346206726,1734775863091,-500.0,0.00019452,2]
[346206727,1734775863101,-500.0,0.00019452,2]
[346206728,1734775863110,-500.0,0.00019452,2]
[346206729,1734775863121,-500.0,0.00019452,2]
[346206730,1734775863130,-383.91363023,0.00019452,2]
[346206731,1734775863140,-500.0,0.00019452,2]
[346206732,1734775863149,-500.0,0.00019452,2]
[346206733,1734775863158,-500.0,0.00019452,2]
[346206734,1734775863168,-500.0,0.00019452,2]
[346206735,1734775863177,-500.0,0.00019452,2]
[346206736,1734775863187,-500.0,0.00019452,2]
[346206737,1734775863197,-500.0,0.00019452,2]
[346206738,1734775863207,-500.0,0.00019452,2]
[346206739,1734775863217,-500.0,0.00019452,2]
[346206740,1734775863228,-632.15,0.00019452,2]
[346206741,1734775863237,-500.0,0.00019452,2]
[346206742,1734775863247,-500.0,0.00019452,2]
[346206743,1734775863259,-500.0,0.00019452,2]
[346206744,1734775863269,-830.33,0.00019452,2]
[346206745,1734775863279,-1009.36,0.00019452,2]
[346206746,1734775863288,-858.9,0.00019452,2]
[346206747,1734775863298,-1002.4,0.00019452,2]
[346206748,1734775863308,-2321.55,0.00019452,2]
[346206749,1734775863318,-500.0,0.00019452,2]
[346206750,1734775863328,-500.0,0.00019452,2]
[346206751,1734775863339,-500.0,0.00019452,2]
[346206752,1734775863348,-600.34,0.00019452,2]
[346206753,1734775863358,-500.0,0.00019452,2]
[346206754,1734775863368,-1104.22,0.00019452,2]
[346206755,1734775863378,-764.36,0.00019452,2]
[346206756,1734775863388,-500.0,0.00019452,2]
[346206757,1734775863398,-500.0,0.00019452,2]
[346206758,1734775863408,-4224.23,0.00019452,2]
[346206759,1734775863417,-1180.1,0.00019452,2]
[346206760,1734775863427,-500.0,0.00019452,2]
[346206761,1734775863437,-633.6,0.00019452,2]
[346206762,1734775863447,-634.17,0.00019452,2]
[346206763,1734775863457,-500.0,0.00019452,2]
[346206764,1734775863466,-1585.36,0.00019452,2]
[346206765,1734775863476,-898.1,0.00019452,2]
[346206766,1734775863486,-500.0,0.00019452,2]
[346206767,1734775863496,-500.0,0.00019452,2]
[346206768,1734775863508,-4622.95,0.00019452,2]
[346206769,1734775863519,-1021.92,0.00019452,2]
[346206770,1734775863530,-691.59,0.00019452,2]
[346206771,1734775863539,-500.0,0.00019452,2]
[346206772,1734775863550,-272.07930671,0.00019452,2]
[346206773,1734775863559,-500.0,0.00019452,2]
[346206774,1734775863569,-517.57511164,0.00019452,2]
[346206775,1734775863579,-500.0,0.00019452,2]
[346206776,1734775863588,-500.0,0.00019452,2]
[346206777,1734775863598,-500.0,0.00019452,2]
[346206778,1734775863608,-1424.85,0.00019452,2]
[346206779,1734775863617,-2578.29,0.00019452,2]
[346206780,1734775863627,-2579.16,0.00019452,2]
[346206781,1734775863636,-500.0,0.00019452,2]
[346206782,1734775863646,-500.0,0.00019452,2]
[346206783,1734775863655,-500.0,0.00019452,2]
[346206784,1734775863665,-754.63,0.00019452,2]
[346206785,1734775863674,-500.0,0.00019452,2]
[346206786,1734775863684,-500.0,0.00019452,2]
[346206787,1734775863693,-500.0,0.00019452,2]
[346206788,1734775863703,-649.35838382,0.00019452,2]
[346206789,1734775863713,-500.0,0.00019452,2]
[346206790,1734775863723,-788.9,0.00019452,2]
[346206791,1734775863732,-500.0,0.00019452,2]
[346206792,1734775863743,-2172.59,0.00019452,2]
[346206793,1734775863752,-500.0,0.00019452,2]
[346206794,1734775863762,-500.0,0.00019452,2]
[346206795,1734775863771,-1154.56,0.00019452,2]
[346206796,1734775863781,-601.24775283,0.00019452,2]
[346206797,1734775863791,-1815.99,0.00019452,2]
[346206798,1734775863801,-564.41,0.00019452,2]
[346206799,1734775863810,-500.0,0.00019452,2]
[346206800,1734775863820,-500.0,0.00019452,2]
[346206801,1734775863830,-500.0,0.00019452,2]
[346206802,1734775863839,-502.23468926,0.00019452,2]
[346206803,1734775863849,-2330.72,0.00019452,2]
[346206804,1734775863859,-765.63,0.00019452,2]
[346206805,1734775863868,-2027.75,0.00019452,2]
[346206806,1734775863878,-692.78,0.00019452,2]
[346206807,1734775863888,-500.0,0.00019452,2]
[346206808,1734775863898,-1929.85,0.00019452,2]
[346206809,1734775863908,-503.61351935,0.00019452,2]
[346206810,1734775863918,-500.0,0.00019452,2]
[346206811,1734775863927,-1824.57,0.00019452,2]
[346206812,1734775863937,-3085.76,0.00019452,2]
[346206813,1734775863947,-3050.1,0.00019452,2]
[346206814,1734775863956,-500.0,0.00019452,2]
[346206815,1734775863966,-1827.52,0.00019452,2]
[346206816,1734775863983,-217.38664531,0.00019452,2]
[346206817,1734775864004,-500.0,0.00019452,2]
[346206818,1734775864024,-649.52,0.00019452,2]
[346206819,1734775864050,-5765.15,0.00019452,2]
[346206820,1734775864068,-500.0,0.00019452,2]
[346206821,1734775864088,-969.47,0.00019452,2]
[346206822,1734775864110,-870.4,0.00019452,2]
[346206823,1734775864131,-500.0,0.00019452,2]
[346206824,1734775864151,-606.49,0.00019452,2]
[346206825,1734775864169,-500.0,0.00019452,2]
[346206826,1734775864188,-818.72,0.00019452,2]
[346206827,1734775864204,-1170.36,0.00019452,2]
[346206828,1734775864228,-1969.88,0.00019452,2]
[346206829,1734775864241,-500.0,0.00019452,2]
[346206830,1734775864262,-500.0,0.00019452,2]
[346206831,1734775864277,-1351.85,0.00019452,2]
[346206832,1734775864293,-500.0,0.00019452,2]
[346206833,1734775864308,-500.0,0.00019452,2]
[346206834,1734775864324,-1171.29,0.00019452,2]
[346206835,1734775864342,-905.62,0.00019452,2]
[346206836,1734775864358,-500.0,0.00019452,2]
[346206837,1734775864374,-3955.31,0.00019452,2]
[346206838,1734775864389,-500.0,0.00019452,2]
[346206839,1734775864404,-500.0,0.00019452,2]
[346206840,1734775864418,-500.0,0.00019452,2]
[346206841,1734775864434,-3406.92,0.00019452,2]
[346206842,1734775864449,-3714.4,0.00019452,2]
[346206843,1734775864464,-255.7213557,0.00019452,2]
[346206844,1734775864479,-500.0,0.00019452,2]
[346206845,1734775864494,-551.67,0.00019452,2]
[346206846,1734775864510,-1872.87,0.00019452,2]
[346206847,1734775864526,-500.0,0.00019452,2]
[346206848,1734775864541,-1524.84,0.00019452,2]
[346206849,1734775864558,-361.28426263,0.00019452,2]
[346206850,1734775864574,-1092.92,0.00019452,2]
[346206851,1734775864588,-500.0,0.00019452,2]
[346206852,1734775864602,-3322.3,0.00019452,2]
[346206853,1734775864617,-500.0,0.00019452,2]
[346206854,1734775864632,-500.0,0.00019452,2]
[346206855,1734775864647,-500.0,0.00019452,2]
[346206856,1734775864661,-500.0,0.00019452,2]
[346206857,1734775864676,-500.0,0.00019452,2]
[346206858,1734775864695,-500.0,0.00019452,2]
[346206859,1734775864709,-500.0,0.00019452,2]
[346206860,1734775864724,-500.0,0.00019452,2]
[346206861,1734775864739,-2695.44,0.00019452,2]
[346206862,1734775864755,-572.66,0.00019452,2]
[346206863,1734775864770,-500.0,0.00019452,2]
[346206864,1734775864784,-500.0,0.00019452,2]
[346206865,1734775864799,-500.0,0.00019452,2]
[346206866,1734775864814,-883.25,0.00019452,2]
[346206867,1734775864829,-500.0,0.00019452,2]
[346206868,1734775864843,-947.22,0.00019452,2]
[346206869,1734775864858,-500.0,0.00019452,2]
[346206870,1734775864873,-500.0,0.00019452,2]
[346206871,1734775864888,-2249.96,0.00019452,2]
[346206872,1734775864903,-2084.85,0.00019452,2]
[346206873,1734775864918,-525.75187495,0.00019452,2]
[346206874,1734775864933,-1472.03,0.00019452,2]
[346206875,1734775864948,-500.0,0.00019452,2]
[346206876,1734775864963,-1123.42,0.00019452,2]
[346206877,1734775864977,-500.0,0.00019452,2]
[346206878,1734775864992,-500.0,0.00019452,2]
[346206879,1734775865010,-502.29860227,0.00019452,2]
[346206880,1734775865025,-500.0,0.00019452,2]
[346206881,1734775865043,-2186.91,0.00019452,2]
[346206882,1734775865058,-5683.01,0.00019452,2]
[346206883,1734775865072,-500.0,0.00019452,2]
[346206884,1734775865087,-500.0,0.00019452,2]
[346206885,1734775865102,-2620.07,0.00019452,2]
[346206886,1734775865116,-500.0,0.00019452,2]
[346206887,1734775865133,-500.0,0.00019452,2]
[346206888,1734775865147,-820.18,0.00019452,2]
[346206889,1734775865162,-4201.22,0.00019452,2]
[346206890,1734775865178,-5057.25,0.00019452,2]
[346206891,1734775865191,-500.0,0.00019452,2]
[346206892,1734775865207,-500.0,0.00019452,2]
[346206893,1734775865221,-500.0,0.00019452,2]
[346206894,1734775865236,-10381.66,0.00019452,2]
[346206895,1734775865251,-4650.6,0.00019452,2]
[346206896,1734775865268,-500.0,0.00019452,2]
[346206897,1734775865283,-561.54,0.00019452,2]
[346206898,1734775865298,-1183.78,0.00019452,2]
[346206899,1734775865313,-500.0,0.00019452,2]
[346206900,1734775865328,-500.0,0.00019452,2]
[346206901,1734775865343,-500.0,0.00019452,2]
[346206902,1734775865357,-525.46,0.00019452,2]
[346206903,1734775865372,-3296.73,0.00019452,2]
[346206904,1734775865386,-3947.52,0.00019452,2]
[346206905,1734775865400,-500.0,0.00019452,2]
[346206906,1734775865415,-502.40019783,0.00019452,2]
[346206907,1734775865428,-500.0,0.00019452,2]
[346206908,1734775865443,-500.0,0.00019452,2]
[346206909,1734775865457,-3535.33,0.00019452,2]
[346206910,1734775865472,-500.0,0.00019452,2]
[346206911,1734775865487,-6490.03,0.00019452,2]
[346206912,1734775865500,-532.36514261,0.00019452,2]
[346206913,1734775865517,-500.0,0.00019452,2]
[346206914,1734775865532,-500.0,0.00019452,2]
[346206915,1734775865546,-500.0,0.00019452,2]
[346206916,1734775865560,-500.0,0.00019452,2]
[346206917,1734775865574,-500.0,0.00019452,2]
[346206918,1734775865588,-1083.48,0.00019452,2]
[346206919,1734775865602,-562.8422346,0.00019452,2]
[346206920,1734775865616,-845.6,0.00019452,2]
[346206921,1734775865630,-500.0,0.00019452,2]
[346206922,1734775865644,-235.51,0.00019452,2]
[346206923,1734775865658,-928.79,0.00019452,2]
[346206924,1734775865672,-500.0,0.00019452,2]
[346206925,1734775865681,-500.0,0.00019452,2]
[346206926,1734775865690,-3391.23,0.00019452,2]
[346206927,1734775865699,-1144.7,0.00019452,2]
[346206928,1734775865709,-500.0,0.00019452,2]
[346206929,1734775865718,-500.0,0.00019452,2]
[346206930,1734775865728,-5742.88,0.00019452,2]
[346206931,1734775865737,-500.0,0.00019452,2]
[346206932,1734775866065,-500.0,0.00019452,2]
[346206933,1734775866092,-2977.76,0.00019452,2]
[346206934,1734775866105,-5965.75,0.00019452,2]
[346206935,1734775866116,-500.0,0.00019452,2]
[346206936,1734775866125,-500.0,0.00019452,2]
[346206937,1734775866134,-1382.72,0.00019452,2]
[346206938,1734775866143,-500.0,0.00019452,2]
[346206939,1734775866153,-2377.95,0.00019452,2]
[346206940,1734775866162,-500.0,0.00019452,2]
[346206941,1734775866171,-500.0,0.00019452,2]
[346206942,1734775866180,-7551.88,0.00019452,2]
[346206943,1734775866190,-4746.58,0.00019452,2]
[346206944,1734775866199,-2769.64,0.00019452,2]
[346206945,1734775866208,-500.0,0.00019452,2]
[346206946,1734775866218,-1797.59,0.00019452,2]
[346206947,1734775866227,-500.0,0.00019452,2]
[346206948,1734775866236,-764.69,0.00019452,2]
[346206949,1734775866245,-500.0,0.00019452,2]
[346206950,1734775866255,-500.0,0.00019452,2]
[346206951,1734775866264,-1876.28,0.00019452,2]
[346206952,1734775866274,-11203.57,0.00019452,2]
[346206953,1734775866283,-500.0,0.00019452,2]
[346206954,1734775866292,-500.0,0.00019452,2]
[346206955,1734775866301,-500.0,0.00019452,2]
[346206956,1734775866311,-500.0,0.00019452,2]
[346206957,1734775866320,-500.0,0.00019452,2]
[346206958,1734775866330,-500.0,0.00019452,2]
[346206959,1734775866339,-3768.97,0.00019452,2]
[346206960,1734775866348,-605.91680201,0.00019452,2]
[346206961,1734775866358,-500.0,0.00019452,2]
[346206962,1734775866367,-500.0,0.00019452,2]
[346206963,1734775866376,-1762.7,0.00019452,2]
[346206964,1734775866385,-1397.67,0.00019452,2]
[346206965,1734775866395,-3624.71,0.00019452,2]
[346206966,1734775866405,-500.0,0.00019452,2]
[346206967,1734775866414,-500.0,0.00019452,2]
[346206968,1734775866424,-20949.33,0.00019452,2]
[346206969,1734775866433,-500.0,0.00019452,2]
[346206970,1734775866442,-500.0,0.00019452,2]
[346206971,1734775866452,-150.0,0.00019452,2]
[346206972,1734775866461,-500.0,0.00019452,2]
[346206973,1734775866470,-500.0,0.00019452,2]
[346206974,1734775866480,-500.0,0.00019452,2]
[346206975,1734775866490,-500.0,0.00019452,2]
[346206976,1734775866499,-500.0,0.00019452,2]
[346206977,1734775866509,-500.0,0.00019452,2]
[346206978,1734775866519,-500.0,0.00019452,2]
[346206979,1734775866529,-1049.07,0.00019452,2]
[346206980,1734775866538,-3136.63,0.00019452,2]
[346206981,1734775866548,-1027.9,0.00019452,2]
[346206982,1734775866558,-798.1,0.00019452,2]
[346206983,1734775866568,-500.0,0.00019452,2]
[346206984,1734775866577,-6628.04,0.00019452,2]
[346206985,1734775866586,-660.71,0.00019452,2]
[346206986,1734775866596,-477.96564028,0.00019452,2]
[346206987,1734775866605,-500.0,0.00019452,2]
[346206988,1734775866615,-5000.0,0.00019452,2]
[346206989,1734775866624,-500.0,0.00019452,2]
[346206990,1734775866633,-500.0,0.00019452,2]
[346206991,1734775866644,-500.0,0.00019452,2]
[346206992,1734775866653,-500.0,0.00019452,2]
[346206993,1734775866663,-500.0,0.00019452,2]
[346206994,1734775866673,-500.0,0.00019452,2]
[346206995,1734775866683,-500.0,0.00019452,2]
[346206996,1734775866692,-2498.1,0.00019452,2]
[346206997,1734775866701,-500.0,0.00019452,2]
[346206998,1734775866710,-500.0,0.00019452,2]
[346206999,1734775866720,-500.0,0.00019452,2]
[346207000,1734775866729,-16473.89,0.00019452,2]
[346207001,1734775866739,-500.0,0.00019452,2]
[346207002,1734775866748,-961.49,0.00019452,2]
[346207003,1734775866760,-576.11,0.00019452,2]
[346207004,1734775866769,-500.0,0.00019452,2]
[346207005,1734775866778,-500.0,0.00019452,2]
[346207006,1734775866786,-500.0,0.00019452,2]
[346207007,1734775866795,-500.0,0.00019452,2]
[346207008,1734775866804,-682.72,0.00019452,2]
[346207009,1734775866813,-503.09730695,0.00019452,2]
[346207010,1734775866822,-500.0,0.00019452,2]
[346207011,1734775866831,-500.0,0.00019452,2]
[346207012,1734775866840,-947.84,0.00019452,2]
[346207013,1734775866849,-608.13,0.00019452,2]
[346207014,1734775866858,-509.22524717,0.00019452,2]
[346207015,1734775866867,-501.57311954,0.00019452,2]
[346207016,1734775866875,-2207.4,0.00019452,2]
[346207017,1734775866884,-500.0,0.00019452,2]
[346207018,1734775866893,-500.0,0.00019452,2]
[346207019,1734775866902,-616.43,0.00019452,2]
[346207020,1734775866911,-641.08,0.00019452,2]
[346207021,1734775866920,-703.62,0.00019452,2]
[346207022,1734775866929,-500.0,0.00019452,2]
[346207023,1734775866938,-819.35,0.00019452,2]
[346207024,1734775866947,-1708.42,0.00019452,2]
[346207025,1734775866956,-500.0,0.00019452,2]
[346207026,1734775866965,-827.89,0.00019452,2]
[346207027,1734775866974,-500.0,0.00019452,2]
[346207028,1734775866983,-1594.45,0.00019452,2]
[346207029,1734775866992,-877.93,0.00019452,2]
[346207030,1734775867002,-483.7683234,0.00019452,2]
[346207031,1734775867013,-1310.13,0.00019452,2]
[346207032,1734775867023,-500.0,0.00019452,2]
[346207033,1734775867033,-500.0,0.00019452,2]
[346207034,1734775867046,-663.97,0.00019452,2]
[346207035,1734775867055,-500.0,0.00019452,2]
[346207036,1734775867065,-2854.57,0.00019452,2]
[346207037,1734775867074,-500.0,0.00019452,2]
[346207038,1734775867084,-500.0,0.00019452,2]
[346207039,1734775867093,-500.0,0.00019452,2]
[346207040,1734775867103,-500.0,0.00019452,2]
[346207041,1734775867114,-500.0,0.00019452,2]
[346207042,1734775867123,-241.91075704,0.00019473,2]
[346207043,1734775867133,-202.31,0.00019478,2]
[346207044,1734775867142,-201.19,0.00019478,2]
[346207045,1734775867151,-24083.0,0.00019479,2]
[346207046,1734775867160,-29582.0,0.00019479,2]
[346207047,1734775867170,-201.66,0.00019482,2]
[346207048,1734775867180,-1100.0,0.00019518,2]
[346207049,1734775867189,-1500.0,0.00019539,2]
[346207050,1734775867199,-2000.0,0.00019563,2]
[346207051,1734775867208,-200.0,0.00019563,2]
[346207052,1734775867219,-603.83701071,0.00019565,2]
[346207053,1734775867228,-152.70496243,0.00019588,2]
[346207054,1734775867238,-190.26,0.00019608,2]
[346207055,1734775867248,-929.73057511,0.00019632,2]
[346207056,1734775867258,-603.83701071,0.00019686,2]
[346207057,1734775867267,-286.93894689,0.00019716,2]
[346207058,1734775867277,-1000.0,0.00019721,2]
[346207059,1734775867287,-472.84058429,0.00019721,2]
[346207060,1734775867296,-1000.0,0.00019721,2]
[346207061,1734775867305,-501.54677738,0.00019721,2]
[346207062,1734775867314,-718.98,0.00019725,2]
[346207063,1734775867324,-500.0,0.00019725,2]
[346207064,1734775867334,-500.0,0.00019725,2]
[346207065,1734775867343,-500.0,0.00019725,2]
[346207066,1734775867353,-502.39062539,0.00019725,2]
[346207067,1734775867363,-1703.59,0.00019725,2]
[346207068,1734775867372,-1703.59,0.00019725,2]
[346207069,1734775867381,-1703.59,0.00019725,2]
[346207070,1734775867390,-1315.92517,0.00019726,2]
[346207071,1734775867399,-2060.745603,0.00019726,2]
[346207072,1734775867408,-154.79040146,0.00019726,2]
[346207073,1734775867418,-1583.79419612,0.00019726,5]
[346207074,1734775867427,-155.516392,0.00019726,2]
[346207075,1734775867436,-500.0,0.00019726,2]
[346207076,1734775867445,-500.0,0.00019726,2]
[346207077,1734775867454,-502.29456753,0.00019726,2]
[346207078,1734775867463,-154.14021,0.00019726,2]
[346207079,1734775867472,-153.090772,0.00019726,2]
[346207080,1734775867481,-500.0,0.00019726,2]
[346207081,1734775867490,-500.0,0.00019726,2]
[346207082,1734775867499,-500.0,0.00019726,2]
[346207083,1734775867508,-505.03523585,0.00019726,2]